bitfinex/quotes_BTCUSD_20230905
["timestamp","ask_amount","ask_price","bid_price","bid_amount"]
[1693881009862,3.28544934,25742.0,25741.0,0.025]
[1693881010069,3.28598934,25742.0,25741.0,0.025]
[1693881010242,3.29828934,25742.0,25741.0,0.025]
[1693881010596,2.98564527,25742.0,25741.0,0.025]
[1693881010802,3.23024633,25742.0,25741.0,0.025]
[1693881011123,3.22238633,25742.0,25741.0,0.025]
[1693881011303,3.22286633,25742.0,25741.0,0.025]
[1693881011504,3.22556633,25742.0,25741.0,0.025]
[1693881011707,3.22562633,25742.0,25741.0,0.025]
[1693881011907,3.22568633,25742.0,25741.0,0.025]
[1693881012107,2.96746527,25742.0,25741.0,0.025]
[1693881012450,2.96992527,25742.0,25741.0,0.025]
[1693881012598,2.97178527,25742.0,25741.0,0.025]
[1693881012824,2.98546527,25742.0,25741.0,0.025]
[1693881013030,2.98732527,25742.0,25741.0,0.025]
[1693881013236,2.98708527,25742.0,25741.0,0.025]
[1693881013564,2.98564527,25742.0,25741.0,0.025]
[1693881013688,2.98474527,25742.0,25741.0,0.025]
[1693881013888,2.98208527,25742.0,25737.0,0.427393]
[1693881014143,0.38664527,25741.0,25737.0,0.427393]
[1693881014363,1.554012,25740.0,25737.0,0.427393]
[1693881014551,0.38664527,25739.0,25737.0,0.427393]
[1693881014781,1.16367627,25739.0,25737.0,0.427393]
[1693881014961,1.16367627,25739.0,25737.0,0.451393]
[1693881015165,1.41840716,25739.0,25737.0,0.451393]
[1693881015358,0.29482544,25738.0,25737.0,0.427393]
[1693881016362,0.29482544,25738.0,25737.0,0.452393]
[1693881016565,0.29482544,25738.0,25737.0,0.427393]
[1693881016903,0.29682544,25738.0,25737.0,0.476393]
[1693881017286,0.29682544,25738.0,25737.0,0.452393]
[1693881017501,0.29682544,25738.0,25737.0,0.471393]
[1693881017502,0.29882544,25738.0,25737.0,0.471393]
[1693881027606,0.68547071,25738.0,25737.0,0.049]
[1693881027806,1.46253171,25738.0,25737.0,0.049]
[1693881028427,1.61403171,25738.0,25737.0,0.049]
[1693881028804,1.46253171,25738.0,25737.0,0.049]
[1693881029022,1.46053171,25738.0,25737.0,0.024]
[1693881029420,1.46253171,25738.0,25737.0,0.048]
[1693881029628,1.45853171,25738.0,25736.0,0.88646659]
[1693881029831,1.45853171,25738.0,25736.0,0.45905059]
[1693881030079,1.46153171,25738.0,25737.0,0.037]
[1693881030611,1.45953171,25738.0,25737.0,0.013]
[1693881030807,0.68247071,25738.0,25737.0,0.013]
[1693881031024,0.68447071,25738.0,25737.0,0.013]
[1693881031464,0.68247071,25738.0,25737.0,0.013]
[1693881032861,0.68347071,25738.0,25737.0,0.027]
[1693881033088,0.68347071,25738.0,25737.0,0.1111]
[1693881033651,0.68347071,25738.0,25737.0,1.3933]
[1693881033652,0.002,25738.0,25737.0,1.3933]
[1693881036896,0.002,25738.0,25737.0,0.9659]
[1693881038812,0.29560151,25738.0,25737.0,0.1111]
[1693881039041,0.68224678,25738.0,25737.0,0.1111]
[1693881039496,0.68224678,25738.0,25737.0,0.027]
[1693881039698,1.45930778,25738.0,25737.0,0.027]
[1693881039915,2.39446878,25738.0,25737.0,0.027]
[1693881040122,3.31194535,25738.0,25737.0,0.027]
[1693881040332,3.40890535,25738.0,25737.0,0.027]
[1693881040538,3.32240535,25738.0,25737.0,0.027]
[1693881040749,3.24263393,25738.0,25737.0,0.027]
[1693881040955,2.98910827,25738.0,25737.0,0.027]
[1693881041160,2.98436827,25738.0,25737.0,0.027]
[1693881041366,3.23954178,25738.0,25737.0,0.013]
[1693881041583,3.23420178,25738.0,25737.0,0.013]
[1693881041790,3.23342178,25738.0,25737.0,0.013]
[1693881041992,3.23342178,25738.0,25735.0,0.019796]
[1693881041993,3.23008178,25738.0,25735.0,0.019796]
[1693881042204,0.38664527,25737.0,25735.0,0.019796]
[1693881042411,1.554242,25736.0,25735.0,0.019796]
[1693881042614,1.94088727,25736.0,25735.0,0.019796]
[1693881042814,2.10228727,25736.0,25735.0,0.019796]
[1693881044030,2.11028727,25736.0,25735.0,0.019796]
[1693881044459,0.55604527,25736.0,25735.0,0.019796]
[1693881049590,0.55604527,25736.0,25735.0,0.874662]
[1693881049751,0.39464527,25736.0,25735.0,1.386195]
[1693881054412,0.008,25736.0,25735.0,1.386195]
[1693881058182,0.26649418,25740.0,25736.0,0.0841]
[1693881058382,0.38664527,25739.0,25737.0,1.709584]
[1693881058586,0.38664527,25739.0,25738.0,0.0841]
[1693881058790,0.38664527,25739.0,25738.0,1.366249]
[1693881059710,0.39964527,25739.0,25738.0,1.367249]
[1693881061672,0.41264527,25739.0,25738.0,1.368249]
[1693881069781,0.63743119,25739.0,25738.0,1.368249]
[1693881070641,0.78743119,25739.0,25738.0,0.940866]
[1693881070847,0.86153119,25739.0,25738.0,0.940866]
[1693881071042,0.78743119,25739.0,25738.0,0.940866]
[1693881071768,0.85811119,25739.0,25738.0,0.940866]
[1693881071994,0.85817119,25739.0,25738.0,0.940866]
[1693881072175,0.78743119,25739.0,25738.0,0.940866]
[1693881073083,0.78743119,25739.0,25738.0,0.0861]
[1693881073260,0.78743119,25739.0,25738.0,0.513483]
[1693881073693,0.86471119,25739.0,25738.0,0.513483]
[1693881073891,0.86243119,25739.0,25738.0,0.513483]
[1693881074118,0.78743119,25739.0,25738.0,0.513483]
[1693881075319,0.86063119,25739.0,25738.0,0.513483]
[1693881075531,0.86045119,25739.0,25738.0,0.513483]
[1693881075738,0.85943119,25739.0,25738.0,0.513483]
[1693881075886,0.85937119,25739.0,25738.0,0.513483]
[1693881076083,0.85895119,25739.0,25738.0,0.513483]
[1693881076310,0.85673119,25739.0,25738.0,0.940866]
[1693881076510,0.85769119,25739.0,25738.0,0.940866]
[1693881076728,0.85751119,25739.0,25738.0,0.940866]
[1693881076930,0.85739119,25739.0,25738.0,0.940866]
[1693881077324,0.85727119,25739.0,25738.0,0.940866]
[1693881077483,0.85709119,25739.0,25738.0,0.940866]
[1693881077682,0.78743119,25739.0,25738.0,0.940866]
[1693881087772,0.56264527,25739.0,25738.0,1.368249]
[1693881095963,0.41264527,25739.0,25738.0,1.368249]
[1693881106267,0.57124527,25739.0,25738.0,1.368249]
[1693881110708,0.026,25739.0,25738.0,1.368249]
[1693881122122,0.026,25739.0,25738.0,2.91511822]
[1693881122409,0.04988996,25741.0,25738.0,3.19247122]
[1693881122661,0.04988996,25741.0,25740.0,0.1]
[1693881122873,0.0928729,25745.0,25740.0,3.35623622]
[1693881123098,0.04917653,25744.0,25741.0,1.11948622]
[1693881123303,0.0928729,25746.0,25744.0,0.0841]
[1693881123540,0.0928729,25746.0,25745.0,0.938634]
[1693881123816,0.0928729,25746.0,25745.0,1.793168]
[1693881124285,0.23218225,25747.0,25745.0,1.793168]
[1693881124559,0.23218225,25747.0,25746.0,0.0841]
[1693881124781,0.23218225,25747.0,25746.0,1.36585]
[1693881125006,0.23218225,25747.0,25746.0,1.3619853]
[1693881125249,0.0928729,25747.0,25746.0,1.3619853]
[1693881126674,0.2522729,25748.0,25746.0,1.3619853]
[1693881126945,0.013,25747.0,25746.0,1.28275]
[1693881127152,0.011,25747.0,25746.0,1.36685]
[1693881127686,0.011,25747.0,25746.0,1.36569114]
[1693881128724,0.1776,25747.0,25746.0,1.36669114]
[1693881129184,0.1776,25747.0,25746.0,1.36569114]
[1693881129528,0.1886,25747.0,25746.0,1.36669114]
[1693881136820,0.85992652,25747.0,25746.0,0.0861]
[1693881138118,0.92724652,25747.0,25746.0,0.0861]
[1693881138291,0.92700652,25747.0,25746.0,0.0861]
[1693881138510,0.92586652,25747.0,25746.0,0.0861]
[1693881138834,0.85992652,25747.0,25746.0,0.0861]
[1693881142960,0.85992652,25747.0,25746.0,0.51335]
[1693881157720,0.85992652,25747.0,25746.0,0.9406]
[1693881159371,0.022,25747.0,25746.0,1.36785]
[1693881165460,0.11479024,25747.0,25746.0,1.36785]
[1693881165866,0.76619891,25747.0,25746.0,0.9406]
[1693881166723,0.92949891,25747.0,25746.0,0.9406]
[1693881167673,1.06868427,25747.0,25746.0,0.9406]
[1693881168268,0.80392087,25747.0,25746.0,1.36785]
[1693881171023,0.71113063,25747.0,25746.0,1.36785]
[1693881171673,0.80404305,25747.0,25746.0,1.36785]
[1693881181055,0.66485769,25747.0,25746.0,1.36785]
[1693881181974,0.80404305,25747.0,25746.0,1.36785]
[1693881182974,0.66485769,25747.0,25746.0,1.36785]
[1693881183960,0.80404305,25747.0,25746.0,1.36785]
[1693881184479,0.66485769,25747.0,25746.0,1.36785]
[1693881185205,0.80404305,25747.0,25746.0,1.36785]
[1693881186928,0.25409778,25747.0,25746.0,1.36785]
[1693881187326,0.11491242,25747.0,25746.0,1.36785]
[1693881187909,0.80064286,25747.0,25746.0,1.28375]
[1693881188107,0.80064286,25747.0,25746.0,0.8565]
[1693881188708,0.95584286,25747.0,25746.0,0.8565]
[1693881196286,1.09502822,25747.0,25746.0,0.8565]
[1693881197457,0.95584286,25747.0,25746.0,0.8565]
[1693881198088,1.09502822,25747.0,25746.0,0.8565]
[1693881198293,0.95584286,25747.0,25746.0,0.8565]
[1693881198699,1.09502822,25747.0,25746.0,0.8565]
[1693881206527,1.0021158,25747.0,25746.0,0.8565]
[1693881206901,1.09505494,25747.0,25746.0,0.8565]
[1693881207500,1.0021158,25747.0,25746.0,0.8565]
[1693881207901,1.09505727,25747.0,25746.0,0.8565]
[1693881208106,1.0021158,25747.0,25746.0,0.8565]
[1693881211321,1.00235442,25747.0,25746.0,0.8565]
[1693881212587,1.09530459,25747.0,25746.0,0.8565]
[1693881217630,1.00235442,25747.0,25746.0,0.8565]
[1693881218674,1.0953036,25747.0,25746.0,0.8565]
[1693881218899,1.00235442,25747.0,25746.0,0.8565]
[1693881221144,4.1492675,25747.0,25746.0,0.002]
[1693881221318,4.16329924,25747.0,25746.0,0.002]
[1693881221524,4.40270283,25747.0,25746.0,0.002]
[1693881221723,4.39814283,25747.0,25746.0,0.002]
[1693881221945,4.39508283,25747.0,25746.0,0.002]
[1693881222145,4.15147924,25747.0,25746.0,0.002]
[1693881222371,4.15165924,25747.0,25746.0,0.002]
[1693881222570,4.15111924,25747.0,25746.0,0.002]
[1693881222771,4.15081924,25747.0,25746.0,0.002]
[1693881222976,4.13975924,25747.0,25746.0,0.001]
[1693881223178,4.13927924,25747.0,25746.0,0.001]
[1693881223377,0.02,25745.0,25742.0,0.90445429]
[1693881223579,0.47949923,25744.0,25742.0,0.90445429]
[1693881223779,0.63779923,25744.0,25742.0,0.90445429]
[1693881224006,0.63779923,25744.0,25740.0,0.0841]
[1693881224160,0.63779923,25744.0,25742.0,0.427306]
[1693881224161,0.79245734,25744.0,25742.0,0.427306]
[1693881224366,0.63779923,25744.0,25742.0,0.854623]
[1693881224571,0.23213491,25745.0,25743.0,0.0841]
[1693881224775,0.47949923,25745.0,25744.0,1.281852]
[1693881224979,0.47949923,25745.0,25744.0,1.365952]
[1693881225585,0.38664527,25745.0,25744.0,1.365952]
[1693881226003,0.47949923,25745.0,25744.0,1.365952]
[1693881226206,0.38664527,25745.0,25744.0,1.365952]
[1693881227013,0.42364527,25745.0,25744.0,1.369952]
[1693881227620,0.42364527,25745.0,25744.0,0.942668]
[1693881228423,0.42364527,25745.0,25744.0,1.369952]
[1693881229160,0.70170678,25745.0,25744.0,0.942668]
[1693881230865,0.85860678,25745.0,25744.0,0.942668]
[1693881233183,0.85860678,25745.0,25744.0,0.515384]
[1693881236151,0.85860678,25745.0,25744.0,0.0881]
[1693881237370,0.85860678,25745.0,25744.0,0.095507]
[1693881241809,0.85860678,25745.0,25744.0,0.011407]
[1693881252394,0.85860678,25745.0,25744.0,0.438691]
[1693881256487,0.58054527,25745.0,25744.0,0.865975]
[1693881257346,0.42364527,25745.0,25744.0,0.865975]
[1693881258006,0.037,25745.0,25744.0,1.293259]
[1693881258210,0.037,25745.0,25744.0,1.377359]
[1693881265703,0.034638,25745.0,25744.0,1.377359]
[1693881270305,0.029638,25745.0,25744.0,1.377359]
[1693881303138,0.029638,25745.0,25744.0,1.293259]
[1693881305862,0.193338,25745.0,25744.0,1.293259]
[1693881308407,0.193338,25745.0,25744.0,1.483259]
[1693881308880,0.193338,25745.0,25744.0,1.567359]
[1693881309205,0.029638,25745.0,25744.0,1.567359]
[1693881324238,0.122551,25745.0,25744.0,1.567359]
[1693881326958,0.276651,25745.0,25744.0,1.567359]
[1693881331891,0.1922587,25745.0,25744.0,1.567359]
[1693881332073,0.2851717,25745.0,25744.0,1.567359]
[1693881332688,0.1922587,25745.0,25744.0,1.567359]
[1693881338002,0.2851717,25745.0,25744.0,1.567359]
[1693881342292,0.95012791,25745.0,25744.0,1.567359]
[1693881342492,1.07175073,25745.0,25744.0,1.567359]
[1693881342925,1.07557237,25745.0,25744.0,1.567359]
[1693881343094,2.02737778,25745.0,25744.0,1.055975]
[1693881343291,1.79127363,25745.0,25744.0,0.201407]
[1693881343518,3.29560912,25745.0,25744.0,0.201407]
[1693881343717,4.61289764,25745.0,25744.0,0.201407]
[1693881343952,4.34071093,25745.0,25744.0,0.201407]
[1693881344118,4.34035093,25745.0,25744.0,0.201407]
[1693881344497,4.33897093,25745.0,25744.0,0.201407]
[1693881344696,4.33939093,25745.0,25744.0,0.201407]
[1693881344895,4.33945093,25745.0,25744.0,0.201407]
[1693881345166,4.09111812,25745.0,25744.0,0.201407]
[1693881345363,4.09135812,25745.0,25744.0,0.201407]
[1693881345559,4.09159812,25745.0,25744.0,0.201407]
[1693881345798,4.64828913,25745.0,25744.0,0.201407]
[1693881346016,4.40650253,25745.0,25744.0,0.201407]
[1693881346225,4.40746253,25745.0,25744.0,0.201407]
[1693881346394,4.8187078,25745.0,25744.0,0.201407]
[1693881346728,4.8176278,25745.0,25744.0,0.201407]
[1693881346899,4.8149878,25745.0,25744.0,0.201407]
[1693881347134,4.8142678,25745.0,25744.0,0.201407]
[1693881347284,4.8136678,25745.0,25744.0,0.201407]
[1693881347485,4.8143878,25745.0,25744.0,0.201407]
[1693881347690,4.8157078,25745.0,25744.0,0.201407]
[1693881347888,4.8292678,25745.0,25744.0,0.201407]
[1693881348089,4.8237478,25745.0,25744.0,0.201407]
[1693881348319,4.8230278,25745.0,25744.0,0.201407]
[1693881348518,4.8223078,25745.0,25744.0,0.201407]
[1693881348672,4.8191878,25745.0,25744.0,0.201407]
[1693881348872,4.9763028,25745.0,25744.0,0.201407]
[1693881349076,4.9757028,25745.0,25744.0,0.201407]
[1693881349276,4.9749828,25745.0,25744.0,0.201407]
[1693881349605,4.9703028,25745.0,25744.0,0.201407]
[1693881349803,4.9716228,25745.0,25744.0,0.201407]
[1693881350050,4.9616628,25745.0,25744.0,0.201407]
[1693881350247,4.9610628,25745.0,25744.0,0.201407]
[1693881350469,4.9601028,25745.0,25744.0,0.201407]
[1693881350670,4.9592628,25745.0,25744.0,0.201407]
[1693881350937,4.9585428,25745.0,25744.0,0.201407]
[1693881351114,4.9575828,25745.0,25744.0,0.201407]
[1693881351250,4.9523028,25745.0,25744.0,0.201407]
[1693881351459,4.9507428,25745.0,25744.0,0.201407]
[1693881351663,4.9481028,25745.0,25744.0,0.201407]
[1693881351865,5.17944435,25745.0,25744.0,0.201407]
[1693881352086,5.17896435,25745.0,25744.0,0.201407]
[1693881352300,5.17740435,25745.0,25744.0,0.201407]
[1693881352539,5.17704435,25745.0,25744.0,0.201407]
[1693881352742,5.17668435,25745.0,25744.0,0.201407]
[1693881352897,5.17632435,25745.0,25744.0,0.201407]
[1693881353247,5.17548435,25745.0,25744.0,0.201407]
[1693881353400,5.17476435,25745.0,25744.0,0.201407]
[1693881353602,5.17368435,25745.0,25744.0,0.201407]
[1693881353863,5.17332435,25745.0,25744.0,0.201407]
[1693881354147,5.17284435,25745.0,25744.0,0.201407]
[1693881354352,5.17188435,25745.0,25744.0,0.201407]
[1693881354468,5.17152435,25745.0,25744.0,0.201407]
[1693881354677,5.17512435,25745.0,25744.0,0.201407]
[1693881354879,5.17392435,25745.0,25744.0,0.201407]
[1693881355100,5.17356435,25745.0,25744.0,0.201407]
[1693881355299,5.18148435,25745.0,25744.0,0.201407]
[1693881355525,5.18208435,25745.0,25744.0,0.201407]
[1693881355724,5.18172435,25745.0,25744.0,0.201407]
[1693881355925,5.18148435,25745.0,25744.0,0.201407]
[1693881356079,5.18112435,25745.0,25744.0,0.201407]
[1693881356281,5.18088435,25745.0,25744.0,0.201407]
[1693881356489,5.18052435,25745.0,25744.0,0.201407]
[1693881356695,5.18004435,25745.0,25744.0,0.201407]
[1693881357053,5.17968435,25745.0,25744.0,0.201407]
[1693881357321,5.17920435,25745.0,25744.0,0.201407]
[1693881357546,5.17896435,25745.0,25744.0,0.201407]
[1693881357671,5.18040435,25745.0,25744.0,0.201407]
[1693881357882,4.79291908,25745.0,25744.0,0.201407]
[1693881358077,4.79219908,25745.0,25744.0,0.201407]
[1693881358326,4.79195908,25745.0,25744.0,0.201407]
[1693881358539,4.80023908,25745.0,25744.0,0.201407]
[1693881358763,4.79987908,25745.0,25744.0,0.201407]
[1693881358945,4.79963908,25745.0,25744.0,0.201407]
[1693881359169,4.79939908,25745.0,25744.0,0.201407]
[1693881359354,4.79915908,25745.0,25744.0,0.201407]
[1693881359549,5.18448435,25745.0,25744.0,0.201407]
[1693881359779,5.18112435,25745.0,25744.0,0.201407]
[1693881359893,5.18448435,25745.0,25744.0,0.201407]
[1693881360100,5.20392435,25745.0,25744.0,0.201407]
[1693881360301,5.19984435,25745.0,25744.0,0.201407]
[1693881360526,5.19888435,25745.0,25744.0,0.201407]
[1693881360750,5.19576435,25745.0,25744.0,0.201407]
[1693881360973,0.1041,25744.0,25739.0,0.427361]
[1693881361135,0.0841,25740.0,25739.0,0.427361]
[1693881361338,0.47074527,25740.0,25739.0,0.427361]
[1693881361789,0.73199658,25740.0,25739.0,0.427361]
[1693881362303,0.73199658,25740.0,25739.0,0.024]
[1693881362304,0.73399658,25740.0,25739.0,0.024]
[1693881362906,0.73199658,25740.0,25738.0,0.854749]
[1693881363105,0.38664527,25739.0,25738.0,0.854749]
[1693881363479,0.62707929,25739.0,25738.0,0.854751]
[1693881364119,0.62807929,25739.0,25738.0,0.865751]
[1693881364698,0.71217929,25739.0,25738.0,0.865751]
[1693881365360,0.71317929,25739.0,25738.0,0.877751]
[1693881366740,0.71317929,25739.0,25738.0,0.450374]
[1693881366939,2.26723929,25739.0,25738.0,0.023]
[1693881367223,3.12574929,25739.0,25738.0,0.023]
[1693881367433,3.12898929,25739.0,25738.0,0.023]
[1693881367644,3.12724929,25739.0,25738.0,0.023]
[1693881367847,3.12748929,25739.0,25738.0,0.023]
[1693881368046,3.04479527,25739.0,25738.0,0.023]
[1693881368298,3.45792054,25739.0,25738.0,0.011]
[1693881368451,3.45408054,25739.0,25738.0,0.011]
[1693881368665,3.45408054,25739.0,25738.0,0.202]
[1693881368666,3.46872054,25739.0,25738.0,0.202]
[1693881368882,3.06677527,25739.0,25738.0,0.201]
[1693881369089,3.08147527,25739.0,25738.0,0.202]
[1693881369291,3.36601025,25739.0,25738.0,0.202]
[1693881369537,3.06451527,25739.0,25738.0,0.19]
[1693881369778,3.06521527,25739.0,25738.0,0.201]
[1693881369985,3.08801527,25739.0,25738.0,0.203]
[1693881370207,3.08771527,25739.0,25738.0,0.203]
[1693881370360,3.08641527,25739.0,25738.0,0.192]
[1693881370558,3.10999527,25739.0,25738.0,0.194]
[1693881370765,3.10975527,25739.0,25738.0,0.194]
[1693881371064,3.11755527,25739.0,25738.0,0.194]
[1693881371265,3.11605527,25739.0,25738.0,0.194]
[1693881371475,3.11527527,25739.0,25738.0,0.194]
[1693881371685,3.11509527,25739.0,25738.0,0.194]
[1693881371896,3.51411043,25739.0,25738.0,0.194]
[1693881372101,3.51351043,25739.0,25738.0,0.194]
[1693881372358,3.52338073,25739.0,25738.0,0.194]
[1693881372505,3.52350073,25739.0,25738.0,0.194]
[1693881372714,3.52338073,25739.0,25738.0,0.194]
[1693881372912,3.52314073,25739.0,25738.0,0.09545949]
[1693881373145,3.52290073,25739.0,25738.0,0.09545949]
[1693881373376,3.52272073,25739.0,25738.0,0.09545949]
[1693881373538,3.52254073,25739.0,25738.0,0.09545949]
[1693881373764,3.52236073,25739.0,25738.0,0.09545949]
[1693881373963,3.61499984,25739.0,25738.0,0.09545949]
[1693881374168,3.61493984,25739.0,25738.0,0.09545949]
[1693881374510,3.61469984,25739.0,25738.0,0.09545949]
[1693881374713,3.61457984,25739.0,25738.0,0.09545949]
[1693881374919,3.61433984,25739.0,25738.0,0.09545949]
[1693881375129,3.86849379,25739.0,25738.0,0.09545949]
[1693881375311,3.61403984,25739.0,25738.0,0.09545949]
[1693881375459,3.61391984,25739.0,25738.0,0.09545949]
[1693881375667,3.61379984,25739.0,25738.0,0.09545949]
[1693881375870,3.61355984,25739.0,25738.0,0.09545949]
[1693881376098,3.61133984,25739.0,25738.0,0.09545949]
[1693881376271,3.61271984,25739.0,25738.0,0.09545949]
[1693881376479,3.61277984,25739.0,25738.0,0.09545949]
[1693881376699,3.61331984,25739.0,25738.0,0.09545949]
[1693881376899,3.61319984,25739.0,25738.0,0.09545949]
[1693881377227,3.61295984,25739.0,25738.0,0.09545949]
[1693881377437,3.61289984,25739.0,25738.0,0.09545949]
[1693881377642,3.61271984,25739.0,25738.0,0.09545949]
[1693881377847,3.61265984,25739.0,25738.0,0.09545949]
[1693881378133,3.61301984,25739.0,25738.0,0.09545949]
[1693881378363,3.61295984,25739.0,25738.0,0.09545949]
[1693881378569,3.61283984,25739.0,25738.0,0.09545949]
[1693881378702,3.61259984,25739.0,25738.0,0.09545949]
[1693881379110,3.61241984,25739.0,25738.0,0.09545949]
[1693881379330,3.61235984,25739.0,25738.0,0.09545949]
[1693881379528,3.61193984,25739.0,25738.0,0.09545949]
[1693881379777,3.61175984,25739.0,25738.0,0.09545949]
[1693881379909,3.61157984,25739.0,25738.0,0.09545949]
[1693881380121,3.84897716,25739.0,25738.0,0.004]
[1693881380321,3.86396626,25739.0,25738.0,0.004]
[1693881380519,3.86330626,25739.0,25738.0,0.004]
[1693881380720,3.86324626,25739.0,25738.0,0.004]
[1693881380946,3.86330626,25739.0,25738.0,0.004]
[1693881381171,3.62524894,25739.0,25738.0,0.004]
[1693881381346,3.62518894,25739.0,25738.0,0.004]
[1693881381524,3.62464894,25739.0,25738.0,0.004]
[1693881381720,3.62458894,25739.0,25738.0,0.004]
[1693881381972,3.62446894,25739.0,25738.0,0.004]
[1693881382198,3.84372839,25739.0,25738.0,0.004]
[1693881382391,3.84246839,25739.0,25738.0,0.004]
[1693881382554,3.84432839,25739.0,25738.0,0.004]
[1693881382779,3.84444839,25739.0,25738.0,0.004]
[1693881383391,3.98238705,25739.0,25738.0,0.004]
[1693881383935,3.98286705,25739.0,25738.0,0.004]
[1693881384126,3.98298705,25739.0,25738.0,0.004]
[1693881384327,3.98442705,25739.0,25738.0,0.004]
[1693881384529,3.98436705,25739.0,25738.0,0.004]
[1693881384713,3.89244794,25739.0,25738.0,0.004]
[1693881384922,3.89172794,25739.0,25738.0,0.004]
[1693881385123,3.87972794,25739.0,25738.0,0.004]
[1693881385332,3.87582794,25739.0,25738.0,0.004]
[1693881385529,3.87744794,25739.0,25738.0,0.004]
[1693881385731,3.87948794,25739.0,25738.0,0.004]
[1693881385971,3.87962034,25739.0,25738.0,0.004]
[1693881386142,3.87968034,25739.0,25738.0,0.004]
[1693881386318,3.88028034,25739.0,25738.0,0.004]
[1693881386679,3.86918034,25739.0,25738.0,0.004]
[1693881386885,3.89371509,25739.0,25738.0,0.004]
[1693881387098,3.89575509,25739.0,25738.0,0.004]
[1693881387278,3.89593509,25739.0,25738.0,0.004]
[1693881387492,3.89653509,25739.0,25738.0,0.004]
[1693881387664,4.21524143,25739.0,25738.0,0.004]
[1693881387870,4.21584143,25739.0,25738.0,0.004]
[1693881388074,4.22376143,25739.0,25738.0,0.004]
[1693881388416,4.22574143,25739.0,25738.0,0.004]
[1693881388530,4.22250143,25739.0,25738.0,0.004]
[1693881388744,4.45365986,25739.0,25738.0,0.004]
[1693881388944,4.22178143,25739.0,25738.0,0.004]
[1693881389198,4.21788143,25739.0,25738.0,0.004]
[1693881389405,4.45443986,25739.0,25738.0,0.004]
[1693881389604,4.45701986,25739.0,25738.0,0.004]
[1693881389806,4.45389986,25739.0,25738.0,0.004]
[1693881390006,3.76284403,25739.0,25738.0,0.004]
[1693881390207,4.37589301,25739.0,25738.0,0.004]
[1693881390363,4.37613301,25739.0,25738.0,0.004]
[1693881390565,3.91690403,25739.0,25738.0,0.004]
[1693881390785,4.37625369,25739.0,25738.0,0.004]
[1693881391012,4.37637369,25739.0,25738.0,0.004]
[1693881391190,4.37643369,25739.0,25738.0,0.004]
[1693881391408,4.37937369,25739.0,25738.0,0.004]
[1693881391609,4.37949369,25739.0,25738.0,0.004]
[1693881391768,3.92092403,25739.0,25738.0,0.004]
[1693881391970,3.70496458,25739.0,25738.0,0.004]
[1693881392416,4.04768985,25739.0,25738.0,0.004]
[1693881392674,4.73969762,25739.0,25738.0,0.004]
[1693881392826,4.88743762,25739.0,25738.0,0.004]
[1693881393045,4.88737762,25739.0,25738.0,0.004]
[1693881393410,4.88719762,25739.0,25738.0,0.004]
[1693881393617,4.88689762,25739.0,25738.0,0.004]
[1693881393932,4.88641762,25739.0,25738.0,0.004]
[1693881394146,4.86635762,25739.0,25738.0,0.004]
[1693881394340,4.86611762,25739.0,25738.0,0.004]
[1693881394694,4.63423919,25739.0,25738.0,0.004]
[1693881394858,4.63411919,25739.0,25738.0,0.004]
[1693881395098,4.63393919,25739.0,25738.0,0.004]
[1693881395304,4.63471919,25739.0,25738.0,0.004]
[1693881395513,4.63477919,25739.0,25738.0,0.004]
[1693881395714,4.8914611,25739.0,25738.0,0.004]
[1693881396292,4.8915211,25739.0,25738.0,0.004]
[1693881396886,4.8913411,25739.0,25738.0,0.004]
[1693881397081,4.8905611,25739.0,25738.0,0.004]
[1693881397286,4.91965657,25739.0,25738.0,0.004]
[1693881397592,4.91929657,25739.0,25738.0,0.004]
[1693881397791,4.91923657,25739.0,25738.0,0.004]
[1693881397964,4.91803657,25739.0,25738.0,0.004]
[1693881398144,4.91797657,25739.0,25738.0,0.004]
[1693881398352,4.91827657,25739.0,25738.0,0.004]
[1693881398556,4.91809657,25739.0,25738.0,0.004]
[1693881398728,4.91743657,25739.0,25738.0,0.004]
[1693881398934,4.63243919,25739.0,25738.0,0.004]
[1693881399337,4.63447919,25739.0,25738.0,0.004]
[1693881399532,4.63465919,25739.0,25738.0,0.004]
[1693881399758,4.63459919,25739.0,25738.0,0.004]
[1693881399915,4.63441919,25739.0,25738.0,0.004]
[1693881400112,4.63435919,25739.0,25738.0,0.004]
[1693881400322,4.63465919,25739.0,25738.0,0.004]
[1693881400522,4.89216606,25739.0,25738.0,0.004]
[1693881400733,4.63507919,25739.0,25738.0,0.004]
[1693881400934,4.63435919,25739.0,25738.0,0.004]
[1693881401181,4.63423919,25739.0,25738.0,0.004]
[1693881401402,4.63417919,25739.0,25738.0,0.004]
[1693881401578,4.86599762,25739.0,25738.0,0.004]
[1693881401849,4.86575762,25739.0,25738.0,0.004]
[1693881402055,4.68024287,25739.0,25738.0,0.004]
[1693881402249,4.68030287,25739.0,25738.0,0.004]
[1693881402370,4.68102287,25739.0,25738.0,0.004]
[1693881402594,4.68024287,25739.0,25738.0,0.004]
[1693881402815,4.68042287,25739.0,25738.0,0.004]
[1693881403022,4.68036287,25739.0,25738.0,0.004]
[1693881403219,4.68384287,25739.0,25738.0,0.004]
[1693881403472,4.68318287,25739.0,25738.0,0.004]
[1693881403641,4.68294287,25739.0,25738.0,0.004]
[1693881403845,4.68288287,25739.0,25738.0,0.004]
[1693881404052,4.68174287,25739.0,25738.0,0.004]
[1693881404260,4.68108287,25739.0,25738.0,0.004]
[1693881404464,4.68018287,25739.0,25738.0,0.004]
[1693881404666,4.67958287,25739.0,25738.0,0.004]
[1693881404984,4.67976287,25739.0,25738.0,0.004]
[1693881405137,4.67970287,25739.0,25738.0,0.004]
[1693881405339,4.67958287,25739.0,25738.0,0.004]
[1693881405741,4.67952287,25739.0,25738.0,0.004]
[1693881406060,4.67976287,25739.0,25738.0,0.004]
[1693881406256,4.67964287,25739.0,25738.0,0.004]
[1693881406462,4.68060287,25739.0,25738.0,0.004]
[1693881406663,4.68132287,25739.0,25738.0,0.004]